bitfinex/quotes_SOLUSD_20241116
["timestamp","ask_amount","ask_price","bid_price","bid_amount"]
[1731764306280,0.09367462,220.25,220.1,8.73443733]
[1731764306884,0.09367462,220.23,220.1,13.61506867]
[1731764307271,24.12153862,220.23,220.11,13.61506867]
[1731764307485,0.09367462,220.21,220.11,13.61506867]
[1731764307791,20.0,220.2,220.11,13.61506867]
[1731764308094,0.4541,220.18,220.11,13.61506867]
[1731764308684,20.4541,220.18,220.1,13.61506867]
[1731764308891,0.4541,220.18,220.1,13.61506867]
[1731764312575,0.4541,220.2,220.11,13.61506867]
[1731764312893,0.4541,220.2,220.12,13.61506867]
[1731764313096,0.454,220.25,220.15,13.61506867]
[1731764313296,0.454,220.25,220.1,15.9016]
[1731764313297,0.454,220.25,220.14,13.61506867]
[1731764313681,0.454,220.25,220.15,13.61506867]
[1731764313878,7.3207707,220.27,220.18,13.61506867]
[1731764313879,7.7747707,220.27,220.18,13.61506867]
[1731764314581,7.7747707,220.27,220.18,18.15666867]
[1731764314782,0.454,220.27,220.18,18.15666867]
[1731764315608,0.09367462,220.3,220.18,18.15666867]
[1731764315774,1.5883,220.36,220.19,13.61506867]
[1731764316603,0.09367462,220.35,220.19,13.61506867]
[1731764316801,1.1342,220.41,220.26,13.61506867]
[1731764316980,1.1342,220.41,220.19,1.00792837]
[1731764316981,0.4537,220.4,220.27,13.61506867]
[1731764317180,0.09367462,220.39,220.28,13.61506867]
[1731764317893,0.4537,220.4,220.28,13.61506867]
[1731764317894,0.09367462,220.4,220.28,13.61506867]
[1731764318104,0.12549,220.39,220.28,13.61506867]
[1731764319081,0.12549,220.37,220.28,13.61506867]
[1731764319281,24.027864,220.37,220.28,13.61506867]
[1731764319683,24.027864,220.37,220.27,13.61506867]
[1731764319888,24.027864,220.37,220.26,18.15496867]
[1731764320089,24.027864,220.37,220.24,15.891]
[1731764320290,24.027864,220.37,220.24,29.50606867]
[1731764320587,20.0,220.36,220.24,29.50606867]
[1731764321191,0.4538,220.35,220.24,29.50606867]
[1731764321510,20.0,220.32,220.2,13.61506867]
[1731764321681,20.0,220.32,220.2,18.15626867]
[1731764322284,0.25098,220.31,220.2,4.5412]
[1731764322612,20.0,220.28,220.16,13.61506867]
[1731764322778,20.0,220.28,220.15,25.29506867]
[1731764322978,20.0,220.24,220.15,11.68]
[1731764323210,0.454,220.23,220.14,11.3561]
[1731764323503,24.027864,220.22,220.1,13.61506867]
[1731764323701,20.0,220.21,220.1,13.61506867]
[1731764324005,24.027864,220.22,220.1,13.61506867]
[1731764324190,20.0,220.21,220.1,13.61506867]
[1731764324711,20.4541,220.21,220.1,18.15826867]
[1731764324894,0.4541,220.21,220.1,4.5432]
[1731764325905,0.4541,220.21,220.08,24.97426867]
[1731764326208,0.4541,220.21,220.08,11.3592]
[1731764326209,20.09367462,220.19,220.08,11.3592]
[1731764326384,24.027864,220.16,220.05,13.61506867]
[1731764327708,0.4542,220.15,220.05,18.15936867]
[1731764328810,0.4542,220.15,220.06,13.61506867]
[1731764329003,0.4542,220.15,220.04,11.3615]
[1731764329004,0.4541,220.2,220.1,13.61506867]
[1731764329200,0.4541,220.2,220.05,0.09367462]
[1731764329201,0.4538,220.33,220.15,13.61506867]
[1731764329505,1.1347,220.31,220.15,13.61506867]
[1731764329807,0.09367462,220.3,220.15,13.61506867]
[1731764330515,0.09367462,220.28,220.15,13.61506867]
[1731764330692,0.09367462,220.26,220.15,13.61506867]
[1731764331016,23.902374,220.24,220.13,13.61506867]
[1731764331610,23.902374,220.24,220.14,13.61506867]
[1731764331992,0.454,220.23,220.14,13.61506867]
[1731764333214,0.454,220.23,220.13,13.61506867]
[1731764334511,0.454,220.23,220.14,13.61506867]
[1731764334692,0.454,220.23,220.14,18.15746867]
[1731764336504,0.454,220.23,220.14,4.5424]
[1731764336817,0.454,220.23,220.14,13.61506867]
[1731764338008,0.454,220.23,220.13,13.61506867]
[1731764338621,20.454,220.23,220.12,24.97226867]
[1731764339315,23.902374,220.2,220.12,11.3572]
[1731764340311,0.4541,220.19,220.12,11.3572]
[1731764340995,20.0,220.17,220.07,24.97476867]
[1731764341197,24.027864,220.16,220.07,11.3597]
[1731764341406,20.0,220.15,220.07,11.3597]
[1731764342217,20.0,220.15,220.03,29.52186867]
[1731764342401,0.4542,220.14,220.03,29.52186867]
[1731764342615,0.25098,220.13,220.03,15.9068]
[1731764342807,20.25098,220.13,220.03,15.9068]
[1731764343000,20.0,220.11,220.03,15.9068]
[1731764343802,20.0,220.09,219.98,29.52496867]
[1731764344021,23.776884,220.08,219.98,11.3643]
[1731764344321,23.776884,220.08,219.9,0.1]
[1731764344322,24.12153862,220.06,219.95,13.61506867]
[1731764344622,23.776884,220.04,219.94,13.61506867]
[1731764344816,20.0,220.03,219.93,11.3671]
[1731764345297,20.0,220.03,219.93,24.98216867]
[1731764345617,0.4545,220.02,219.93,11.3671]
[1731764345819,20.0,220.01,219.93,11.3671]
[1731764346024,23.776884,220.0,219.9,4.5475]
[1731764346712,23.776884,219.98,219.88,19.1576]
[1731764347020,20.0,219.97,219.88,19.1576]
[1731764347557,23.776884,219.96,219.88,3.24]
[1731764347698,24.231484,219.96,219.88,3.24]
[1731764348094,20.0,219.95,219.88,3.24]
[1731764348295,23.776884,219.94,219.88,3.24]
[1731764348501,23.776884,219.94,219.85,4.5483]
[1731764349019,0.4546,219.96,219.84,13.61506867]
[1731764349204,0.12549,219.93,219.83,30.05404667]
[1731764349401,24.027864,219.93,219.83,30.05404667]
[1731764349927,0.4547,219.92,219.83,16.438978]
[1731764350833,0.34465462,219.91,219.83,0.517778]
[1731764351023,0.25098,219.89,219.83,0.517778]
[1731764351902,0.4547,219.88,219.83,0.517778]
[1731764353019,24.12153862,219.85,219.83,0.517778]
[1731764353332,0.34465462,219.85,219.83,0.517778]
[1731764354020,44.57633862,219.84,219.83,0.517778]
[1731764356118,0.70578,219.84,219.83,0.517778]
[1731764356326,0.4548,219.84,219.83,0.517778]
[1731764356507,20.0,219.9,219.83,0.517778]
[1731764356508,0.4547,219.9,219.83,0.517778]
[1731764357722,1.1365,219.97,219.83,0.517778]
[1731764358019,0.4546,219.96,219.84,13.61506867]
[1731764358224,1.5907,220.02,219.87,13.61506867]
[1731764358431,2.7271,220.02,219.91,13.61506867]
[1731764358606,0.09367462,220.01,219.91,13.61506867]
[1731764358928,0.4545,220.02,219.87,13.61506867]
[1731764359124,0.4545,220.02,219.91,13.61506867]
[1731764359329,0.4545,220.02,219.92,13.61506867]
[1731764359834,0.09367462,220.01,219.91,13.61506867]
[1731764360020,0.4545,220.02,219.93,13.61506867]
[1731764360214,2.3714,220.13,219.85,0.1]
[1731764360215,0.4542,220.12,219.95,13.61506867]
[1731764360528,7.06890107,220.1,219.95,13.61506867]
[1731764360725,7.06890107,220.1,219.97,13.61506867]
[1731764361135,7.06890107,220.1,219.96,13.61506867]
[1731764361433,0.4542,220.12,219.99,13.61506867]
[1731764361729,0.4542,220.12,220.01,13.61506867]
[1731764362029,0.4542,220.12,219.92,0.1]
[1731764362030,0.4542,220.12,220.02,13.61506867]
[1731764362323,0.4542,220.12,219.93,0.09367462]
[1731764362324,1.5895,220.17,220.0,13.61506867]
[1731764362702,0.34465462,220.16,220.0,13.61506867]
[1731764362905,0.34465462,220.16,220.0,21.80278953]
[1731764362906,0.21916462,220.13,220.0,21.80278953]
[1731764363106,0.12549,220.08,220.0,21.80278953]
[1731764363549,0.09367462,220.05,219.95,11.3662]
[1731764364011,0.21916462,220.03,219.93,21.80278953]
[1731764364209,0.25098,220.02,219.93,21.80278953]
[1731764364414,0.25098,220.02,219.92,21.80278953]
[1731764364629,1.5901,220.09,219.91,15.9155]
[1731764364630,0.4543,220.09,219.94,21.80278953]
[1731764364929,24.12153862,220.06,219.93,21.80278953]
[1731764365111,0.09367462,220.04,219.93,21.80278953]
[1731764365319,24.57593862,220.04,219.94,21.80278953]
[1731764365518,24.57593862,220.04,219.95,21.80278953]
[1731764365713,24.57593862,220.04,219.94,21.80278953]
[1731764366023,24.57593862,220.04,219.93,21.80278953]
[1731764366234,24.57593862,220.04,219.94,21.80278953]
[1731764366914,24.57593862,220.04,219.94,26.34928953]
[1731764367824,24.57593862,220.04,219.93,21.80278953]
[1731764368132,24.57593862,220.04,219.92,21.80278953]
[1731764368432,0.12549,219.97,219.88,21.80278953]
[1731764368636,0.25098,219.97,219.87,23.27278953]
[1731764368811,0.25098,219.97,219.87,21.80278953]
[1731764369136,0.21916462,219.96,219.87,21.80278953]
[1731764369340,0.21916462,219.96,219.86,15.9191]
[1731764369341,0.25098,219.95,219.88,21.80278953]
[1731764369516,0.25098,219.95,219.87,21.80278953]
[1731764369709,0.09367462,219.94,219.87,21.80278953]
[1731764369906,24.027864,219.93,219.86,15.9191]
[1731764370127,0.34465462,219.92,219.83,22.32056753]
[1731764370318,0.34465462,219.92,219.83,0.517778]
[1731764371035,0.34465462,219.92,219.83,5.066578]
[1731764371218,0.34465462,219.9,219.83,0.517778]
[1731764371619,20.0,220.04,219.84,15.9206]
[1731764371810,23.776884,220.01,219.85,21.80278953]
[1731764372140,23.87055862,219.97,219.86,4.5483]
[1731764372431,0.4545,220.02,219.9,21.80278953]
[1731764372634,0.4545,220.02,219.92,21.80278953]
[1731764373137,0.4544,220.04,219.92,21.80278953]
[1731764373327,0.4544,220.04,219.9,21.80278953]
[1731764374036,0.4544,220.04,219.86,33.17358953]
[1731764374037,0.19367462,220.03,219.86,33.17358953]
[1731764374229,0.09367462,220.0,219.86,11.3708]
[1731764374417,0.21916462,220.0,219.86,11.3708]
[1731764374623,0.09367462,219.98,219.86,11.3708]
[1731764374813,0.21916462,219.98,219.84,4.5486]
[1731764375012,0.09367462,219.96,219.84,4.5486]
[1731764375332,0.34465462,219.96,219.83,0.517778]
[1731764375523,0.09367462,219.92,219.83,0.517778]
[1731764375719,0.09367462,219.88,219.83,0.517778]
[1731764375929,0.21916462,219.88,219.83,0.517778]
[1731764376120,0.12549,219.87,219.83,0.517778]
[1731764377210,0.25098,219.87,219.83,0.517778]
[1731764378135,0.12549,219.84,219.83,0.517778]
[1731764378324,0.12549,219.85,219.83,0.517778]
[1731764378523,0.25098,219.89,219.83,26.86936753]
[1731764379153,0.25098,219.89,219.83,22.32056753]
[1731764379733,1.1364,219.99,219.83,22.32056753]
[1731764379734,0.4545,219.98,219.85,21.80278953]
[1731764380110,0.4544,220.03,219.88,21.80278953]
[1731764380437,0.09367462,220.02,219.88,21.80278953]
[1731764380627,0.4544,220.03,219.91,21.80278953]
[1731764380829,0.4544,220.03,219.92,21.80278953]
[1731764381214,0.09367462,220.02,219.92,21.80278953]
[1731764381536,0.4543,220.09,219.94,21.80278953]
[1731764382239,0.09367462,220.08,219.95,4.5464]
[1731764382414,0.4543,220.11,219.96,21.80278953]
[1731764382810,0.09367462,220.1,219.98,21.80278953]
[1731764383231,0.09367462,220.08,219.93,4.5467]
[1731764383817,0.34465462,220.08,219.93,4.5467]
[1731764384142,0.34465462,220.08,219.93,37.71668953]
[1731764384314,0.34465462,220.08,219.87,0.1]
[1731764384315,0.09367462,220.05,219.94,21.80278953]
[1731764384514,0.09367462,220.03,219.94,21.80278953]
[1731764384910,0.25098,220.02,219.94,21.80278953]
[1731764385316,0.25098,220.02,219.95,4.5464]
[1731764385535,0.09367462,219.99,219.93,11.3671]
[1731764385835,0.09367462,219.99,219.78,21.80278953]
[1731764385836,0.09367462,219.97,219.88,11.3697]
[1731764386048,0.21916462,219.95,219.88,11.3697]
[1731764386234,0.12549,219.95,219.88,33.17248953]
[1731764386721,0.12549,219.97,219.88,37.72038953]
[1731764387039,0.25098,219.97,219.88,37.72038953]
[1731764387533,0.4545,220.02,219.89,21.80278953]
[1731764387735,0.4543,220.1,219.93,21.80278953]
[1731764387937,7.63441223,220.1,219.93,21.80278953]
[1731764388234,0.4543,220.1,219.96,21.80278953]
[1731764388436,0.4543,220.1,219.97,21.80278953]
[1731764388735,7.18052254,220.15,220.0,21.80278953]
[1731764389038,0.09367462,220.13,220.0,21.80278953]
[1731764389339,0.09367462,220.13,219.99,21.80278953]
[1731764389830,0.09367462,220.12,219.99,21.80278953]
[1731764390025,23.99604862,220.12,220.0,4.5454]
[1731764390833,23.99604862,220.1,220.0,4.5454]
[1731764391015,23.99604862,220.08,219.98,11.3643]
[1731764391221,0.21916462,220.04,219.98,11.3643]
[1731764391532,0.09367462,220.02,219.98,11.3643]
[1731764391741,0.21916462,220.02,219.94,4.5465]
[1731764391913,0.21916462,220.02,219.94,15.9132]
[1731764392117,0.21916462,220.02,219.94,37.71598953]
[1731764392313,0.21916462,220.02,219.95,21.80278953]
[1731764392739,23.776884,220.06,219.96,21.80278953]
[1731764392934,0.25098,220.05,219.97,21.80278953]
[1731764393128,0.09367462,220.04,219.98,4.5458]
[1731764394914,0.09367462,220.04,219.95,21.80278953]
[1731764395244,0.09367462,220.04,219.96,4.5462]
[1731764395938,0.09367462,220.02,219.94,11.3667]
[1731764396116,0.09367462,220.0,219.94,11.3667]
[1731764396317,0.21916462,220.0,219.94,11.3667]
[1731764398130,7.40233608,220.07,219.94,11.3667]
[1731764398131,0.4544,220.04,219.94,11.3667]
[1731764398337,23.902374,220.03,219.94,11.3667]
[1731764398539,0.09367462,220.0,219.89,21.80278953]
[1731764398727,0.21916462,220.0,219.9,21.80278953]
[1731764399445,0.09367462,219.98,219.9,21.80278953]
[1731764399625,0.09367462,219.98,219.91,4.5473]
[1731764399626,0.12549,219.97,219.91,4.5473]
[1731764399826,0.25098,219.97,219.91,4.5473]
[1731764400532,0.21916462,219.96,219.89,15.9166]
[1731764400851,0.21916462,219.94,219.87,4.548]
[1731764401155,0.25098,219.91,219.84,15.9203]
[1731764401628,7.06598917,220.02,219.84,15.9203]
[1731764401629,0.25098,219.93,219.84,37.72308953]
[1731764401829,24.027864,219.93,219.84,37.72308953]
[1731764402445,0.34465462,219.89,219.83,0.517778]
[1731764402745,20.09367462,219.84,219.83,0.517778]
[1731764402924,44.12153862,219.84,219.83,0.517778]
[1731764404462,20.0,219.84,219.83,0.517778]
[1731764407535,44.12153862,219.84,219.83,0.517778]
[1731764408757,0.12549,219.84,219.83,0.517778]
[1731764409052,0.4548,219.85,219.83,0.517778]
[1731764409949,1.68507462,219.92,219.83,0.517778]
[1731764410154,0.09367462,219.9,219.83,0.517778]
[1731764410362,20.0,219.88,219.83,0.517778]
[1731764410655,20.0,219.86,219.83,0.517778]
[1731764411549,20.4548,219.86,219.83,0.517778]
[1731764414539,20.0,219.86,219.83,0.517778]
[1731764414850,0.09367462,219.87,219.83,0.517778]
[1731764415084,44.12153862,219.84,219.83,0.517778]
[1731764416658,44.57633862,219.84,219.83,0.517778]
[1731764418147,20.4548,219.84,219.83,0.517778]
[1731764418459,0.4547,219.9,219.83,0.517778]
[1731764418763,0.09367462,219.89,219.83,0.517778]
[1731764419533,44.12153862,219.89,219.83,0.517778]
[1731764420239,0.4547,219.88,219.83,0.517778]
[1731764421455,0.09367462,219.9,219.83,0.517778]
[1731764421842,24.12153862,219.9,219.83,0.517778]
[1731764422033,24.12153862,219.88,219.83,0.517778]
[1731764422355,20.0,219.87,219.83,0.517778]
[1731764423243,0.4548,219.86,219.83,0.517778]
[1731764426639,1.1368,219.91,219.83,0.517778]
[1731764426838,20.0,219.89,219.83,0.517778]
[1731764427751,0.4547,219.88,219.83,0.517778]
[1731764428344,0.21916462,219.87,219.83,0.517778]
[1731764428659,20.34465462,219.87,219.83,0.517778]
[1731764429249,20.12549,219.87,219.83,0.517778]
[1731764429452,20.0,219.87,219.83,0.517778]
[1731764429649,0.4547,219.88,219.83,0.517778]
[1731764429844,23.776884,219.9,219.83,0.517778]
[1731764430163,20.34465462,219.89,219.83,0.517778]
[1731764430550,1.5915,219.91,219.83,0.517778]
[1731764431859,0.4547,219.91,219.83,0.517778]
[1731764433452,7.07769759,219.93,219.83,5.066578]
[1731764433767,0.4544,220.05,219.9,21.80278953]
[1731764433964,1.5905,220.05,219.9,21.80278953]
[1731764434452,0.09367462,220.04,219.91,21.80278953]
[1731764434650,1.5905,220.05,219.9,21.80278953]
[1731764434651,0.4544,220.05,219.9,21.80278953]
[1731764434864,0.09367462,220.04,219.9,21.80278953]
[1731764435575,0.09367462,220.02,219.86,15.9191]
[1731764435748,0.09367462,220.0,219.83,5.066478]
[1731764436056,23.97055862,220.02,219.83,5.066478]
[1731764436057,20.0,219.97,219.83,0.517778]
[1731764436362,23.876884,220.02,219.83,0.517778]
[1731764436363,0.09367462,219.94,219.83,0.517778]
[1731764437559,0.09367462,219.9,219.83,0.517778]
[1731764438372,0.09367462,219.88,219.83,0.517778]
[1731764438864,0.09367462,219.86,219.83,0.517778]
[1731764439570,0.4548,219.85,219.83,0.517778]
[1731764440755,7.23033809,219.92,219.83,0.517778]
[1731764440756,0.4547,219.9,219.83,0.517778]
[1731764441682,0.09367462,219.93,219.83,0.517778]
[1731764442177,20.09367462,219.91,219.83,0.517778]
[1731764442365,0.12549,219.9,219.83,0.517778]
[1731764442566,0.12549,219.88,219.83,0.517778]
[1731764443072,0.12549,219.88,219.83,0.017778]
[1731764443651,20.09367462,219.85,219.83,0.017778]
[1731764444961,0.4548,219.84,219.83,0.017778]
[1731764445277,44.231684,219.84,219.83,0.017778]
[1731764445686,44.57633862,219.84,219.83,0.017778]
[1731764447066,20.21916462,219.81,219.69,15.9308]
[1731764447377,20.0,219.79,219.69,11.3791]
[1731764448480,0.455,219.78,219.69,11.3791]
[1731764450280,0.455,219.78,219.7,23.776884]
[1731764450583,0.09367462,219.82,219.7,23.776884]
[1731764450759,0.79955462,219.82,219.7,23.776884]
[1731764457188,1.93675462,219.82,219.66,14.16033011]
[1731764457387,0.22549,219.78,219.61,0.517778]
[1731764457567,0.09367462,219.76,219.61,0.517778]
[1731764457765,0.09367462,219.74,219.61,0.517778]
[1731764457965,0.21916462,219.72,219.61,0.517778]
[1731764458285,0.21916462,219.68,219.61,0.517778]
[1731764459289,0.4552,219.67,219.61,0.517778]
[1731764460488,0.34465462,219.66,219.61,0.517778]
[1731764460994,0.34465462,219.64,219.61,0.517778]
[1731764461167,0.34465462,219.62,219.61,0.517778]
[1731764462098,0.09367462,219.62,219.61,0.517778]
[1731764463179,0.34465462,219.62,219.61,0.517778]
[1731764463481,0.09367462,219.62,219.61,0.517778]
[1731764464190,0.34465462,219.62,219.61,0.517778]
[1731764468087,27.40648018,219.62,219.61,0.517778]
[1731764468293,7.06182556,219.62,219.61,0.517778]
[1731764469098,0.4553,219.63,219.61,0.517778]
[1731764469469,0.09367462,219.62,219.61,0.517778]
[1731764470486,0.4553,219.63,219.61,0.517778]
[1731764471091,0.4552,219.67,219.61,0.517778]
[1731764472195,7.06053328,219.71,219.61,0.517778]
[1731764472499,0.4551,219.7,219.61,0.517778]
[1731764473093,0.4551,219.7,219.61,5.071178]
[1731764473274,0.4551,219.7,219.61,0.517778]
[1731764473690,0.4551,219.7,219.61,26.98615087]
[1731764473898,0.455,219.77,219.69,21.91497287]
[1731764474086,0.455,219.77,219.68,21.91497287]
[1731764474402,1.1372,219.83,219.68,21.91497287]
[1731764474403,1.592,219.83,219.68,21.91497287]
[1731764474602,1.592,219.83,219.68,26.46687287]
[1731764474805,1.592,219.83,219.7,21.91497287]
[1731764475126,1.592,219.83,219.69,21.91497287]
[1731764475403,1.592,219.83,219.64,0.1]
[1731764475404,0.09367462,219.82,219.64,26.46777287]
[1731764476277,23.99604862,219.8,219.64,26.46777287]
[1731764476478,0.21916462,219.76,219.64,26.46777287]
[1731764477007,0.21916462,219.76,219.66,21.91497287]
[1731764477580,0.09367462,219.74,219.64,33.29717287]
[1731764477787,0.21916462,219.72,219.61,22.43275087]
[1731764477991,0.21916462,219.72,219.61,0.517778]
[1731764478194,0.21916462,219.7,219.61,0.517778]
[1731764478391,0.09367462,219.68,219.61,0.517778]
[1731764478704,0.21916462,219.68,219.61,0.517778]
[1731764480391,0.4552,219.67,219.61,0.517778]
[1731764480596,0.4551,219.69,219.61,22.43275087]
[1731764481208,0.09367462,219.68,219.61,0.517778]
[1731764481505,0.21916462,219.68,219.61,0.517778]
[1731764481805,0.21916462,219.64,219.61,0.517778]
[1731764482105,0.4551,219.69,219.61,0.517778]
[1731764482106,20.34465462,219.62,219.61,0.517778]
[1731764482406,44.12153862,219.62,219.61,0.517778]
[1731764482626,44.57683862,219.62,219.61,0.517778]
[1731764485495,44.57683862,219.62,219.43,0.1]
[1731764485496,0.09367462,219.58,219.43,11.3929]
[1731764485688,0.09367462,219.56,219.43,11.3929]
[1731764485891,0.09367462,219.54,219.43,11.3929]
[1731764486105,0.09367462,219.54,219.4,5.075478]
[1731764486106,0.21916462,219.52,219.4,5.075478]
[1731764486307,0.21916462,219.5,219.4,0.517778]
[1731764486486,0.21916462,219.48,219.4,0.517778]
[1731764487587,0.09367462,219.46,219.4,0.517778]
[1731764488002,0.4555,219.53,219.41,21.91497287]
[1731764488309,0.12549,219.52,219.42,21.91497287]
[1731764488487,0.4555,219.53,219.42,21.91497287]
[1731764488685,0.4555,219.53,219.41,22.04046287]
[1731764489710,0.09367462,219.52,219.41,0.12549]
[1731764490009,0.09367462,219.52,219.41,4.68299]
[1731764490210,0.25098,219.58,219.4,38.38525087]
[1731764490394,24.027864,219.56,219.4,38.38525087]
[1731764490601,24.12153862,219.54,219.4,38.38525087]
[1731764490796,0.09367462,219.52,219.4,38.38525087]
[1731764490991,0.21916462,219.52,219.4,16.470278]
[1731764491305,0.09367462,219.5,219.4,16.470278]
[1731764492091,0.09367462,219.5,219.4,38.38525087]
[1731764492292,0.4556,219.49,219.4,38.38525087]
[1731764493093,0.4554,219.58,219.42,21.91497287]
[1731764493391,0.4554,219.58,219.44,21.91497287]
[1731764493611,0.09367462,219.57,219.43,21.91497287]
[1731764493808,0.09367462,219.57,219.44,21.91497287]
[1731764493998,0.4554,219.58,219.41,23.902374]
[1731764493999,0.4554,219.58,219.47,21.91497287]
[1731764494194,0.09367462,219.61,219.46,21.91497287]
[1731764494398,0.4553,219.61,219.49,21.91497287]
[1731764494802,0.09367462,219.6,219.49,21.91497287]
[1731764495118,0.4553,219.61,219.49,21.91497287]
[1731764495295,1.1382,219.64,219.49,21.91497287]
[1731764495499,1.5934,219.64,219.47,26.47117287]
[1731764495699,1.5934,219.64,219.48,21.91497287]
[1731764496109,21.5934,219.64,219.49,45.81734687]
[1731764496399,21.5934,219.64,219.49,21.91497287]
[1731764496400,0.09367462,219.63,219.49,21.91497287]
[1731764497295,0.21916462,219.61,219.49,21.91497287]
[1731764497495,23.99604862,219.61,219.49,21.91497287]
[1731764497705,0.21916462,219.59,219.49,21.91497287]
[1731764498908,0.09367462,219.57,219.48,21.91497287]
[1731764499418,0.09367462,219.57,219.49,21.91497287]
[1731764499624,0.09367462,219.57,219.46,21.91497287]
[1731764500017,0.09367462,219.57,219.47,21.91497287]
[1731764500224,0.09367462,219.57,219.48,21.91497287]
[1731764500724,0.54907462,219.58,219.47,21.91497287]
[1731764501214,0.12549,219.57,219.45,21.91497287]
[1731764501530,0.09367462,219.56,219.45,21.91497287]
[1731764502093,0.09367462,219.54,219.45,21.91497287]
[1731764502298,0.09367462,219.54,219.43,21.91497287]
[1731764502498,20.09367462,219.54,219.42,21.91497287]
[1731764502724,0.4555,219.53,219.43,21.91497287]
[1731764503123,0.09367462,219.52,219.43,21.91497287]
[1731764504120,0.09367462,219.55,219.44,21.91497287]
[1731764504703,0.09367462,219.53,219.44,21.91497287]
[1731764504904,0.09367462,219.53,219.44,13.69709763]
[1731764505526,0.4555,219.52,219.44,13.69709763]
[1731764505827,0.4555,219.52,219.42,18.25449763]
[1731764506127,0.4555,219.52,219.43,13.69709763]
[1731764508698,0.4555,219.52,219.42,18.25449763]
[1731764510201,20.0,219.55,219.42,18.25449763]
[1731764510408,0.4554,219.54,219.44,13.69709763]
[1731764510936,0.09367462,219.53,219.42,29.64809763]
[1731764511308,0.4555,219.52,219.42,15.951]
[1731764511623,0.4555,219.52,219.42,29.64809763]
[1731764511802,0.4555,219.54,219.46,13.69709763]
[1731764512134,15.951,219.55,219.48,13.69709763]
[1731764512426,0.09367462,219.61,219.48,13.69709763]
[1731764512649,23.11411263,219.61,219.48,13.69709763]
[1731764512813,16.04467462,219.61,219.48,13.69709763]
[1731764513214,0.21916462,219.59,219.48,13.69709763]
[1731764514126,0.21916462,219.59,219.47,18.25339763]
[1731764514509,0.21916462,219.59,219.41,0.1]
[1731764514510,0.21916462,219.59,219.46,11.3915]
[1731764515117,0.21916462,219.57,219.46,11.3915]
[1731764515523,0.21916462,219.57,219.44,18.25399763]
[1731764515711,0.21916462,219.57,219.44,4.5569]
[1731764516311,0.21916462,219.57,219.44,18.25399763]
[1731764516525,0.09367462,219.55,219.44,18.25399763]
[1731764518014,0.4554,219.54,219.44,13.69709763]
[1731764518209,0.4554,219.54,219.44,0.12549]
[1731764518731,0.4554,219.54,219.42,15.9509]
[1731764518732,0.09367462,219.53,219.42,29.64799763]
[1731764519427,1.81316462,219.56,219.42,29.64799763]
[1731764519630,1.81316462,219.56,219.42,15.9509]
[1731764519823,1.81316462,219.56,219.42,29.64799763]
[1731764520607,1.81316462,219.56,219.45,13.69709763]
[1731764520811,1.81316462,219.56,219.46,13.69709763]
[1731764521232,1.81316462,219.56,219.45,13.69709763]
[1731764521440,1.81316462,219.56,219.44,13.69709763]
[1731764522215,1.81316462,219.56,219.42,11.3936]
[1731764523548,20.21916462,219.54,219.4,0.517778]
[1731764524740,0.21916462,219.52,219.4,0.517778]
[1731764526023,0.09367462,219.5,219.4,0.517778]
[1731764526423,0.4555,219.51,219.42,13.69709763]
[1731764526941,0.09367462,219.5,219.41,37.59947163]
[1731764527546,0.4556,219.49,219.41,18.37998763]
[1731764528229,0.4556,219.49,219.42,13.69709763]
[1731764528831,0.4556,219.49,219.41,29.77408763]
[1731764529034,0.4556,219.49,219.41,11.3941]
[1731764529538,2.2772,219.57,219.4,0.517778]
[1731764529539,0.09367462,219.46,219.4,0.517778]
[1731764531045,0.12549,219.48,219.4,0.517778]
[1731764531350,0.09367462,219.47,219.4,0.517778]
[1731764531551,0.09367462,219.45,219.4,0.517778]
[1731764531732,23.87055862,219.45,219.4,0.517778]
[1731764531925,0.09367462,219.43,219.4,0.517778]
[1731764533150,0.09367462,219.41,219.4,0.517778]
[1731764534031,0.21916462,219.41,219.4,0.517778]
[1731764535187,43.99604862,219.41,219.4,0.517778]
[1731764535349,23.99604862,219.39,219.26,11.4017]
[1731764535645,0.09367462,219.35,219.26,11.4017]
[1731764536347,0.09367462,219.33,219.23,18.72163011]
[1731764536538,0.09367462,219.33,219.23,32.41872774]
[1731764536726,23.99604862,219.33,219.22,42.48099034]